[Event "FIDE World Rapid-ch Open 2018"]
[White "Mikhalevski, Victor"]
[Black "Chen, Qi b"]
[Site "St. Petersburg"]
[Round "11.90"]
[Annotator "ChessBase"]
[Result "1-0"]
[Date "2018.12.28"]
[WhiteElo "2579"]
[BlackElo "2437"]
[PlyCount "133"]
[TimeControl "900+10"]

1. Nf3 {[%emt 0:0:0]} Nf6 {[%emt 0:0:0]} 2. d4 {[%emt 0:0:0]} g6 {[%emt 0:0:1]
} 3. g3 {[%emt 0:0:1]} Bg7 {[%emt 0:0:1]} 4. Bg2 {[%emt 0:0:0]} 0-0 {[%emt 0:0:3]} 5. 0-0 {[%emt 0:0:2]} d6 {[%emt 0:0:1]} 6. b3 {[%emt 0:0:7]
} e5 {[%emt 0:0:25]} 7. dxe5 {[%emt 0:0:5]} dxe5 {[%emt 0:0:0]} 8. Ba3 {[%emt 0:0:8]} Re8 {[%emt 0:0:23]} 9. Qxd8 {[%emt 0:0:23]} Rxd8 {[%emt 0:0:1]} 10. Nc3 {[%emt 0:0:3]} Nc6 {[%emt 0:0:31]} 11. Rad1 {[%emt 0:1:5]
} Bf5 {[%emt 0:1:29]} 12. Nh4 {[%emt 0:0:23]} Be6 {[%emt 0:0:0]} 13. Bxc6 {[%emt 0:2:34]} bxc6 {[%emt 0:0:2]} 14. e4 {[%emt 0:0:3]} Nd7 {[%emt 0:2:39]} 15. f3 {[%emt 0:0:23]} Nb6 {[%emt 0:0:29]} 16. Bc5 {[%emt 0:1:32]
} f5 {[%emt 0:1:2]} 17. Ng2 {[%emt 0:1:24]} Kf7 {[%emt 0:0:0]} 18. Kf2 {[%emt 0:0:2]} Nd7 {[%emt 0:1:40]} 19. Be3 {[%emt 0:0:16]} Nb6 {[%emt 0:1:4]} 20. Bg5 {[%emt 0:0:51]} Rxd1 {[%emt 0:0:14]} 21. Rxd1 {[%emt 0:0:5]
} Bf8 {[%emt 0:0:7]} 22. Be3 {[%emt 0:1:6]} Bb4 {[%emt 0:0:0]} 23. Rd3 {[%emt 0:0:8]} a6 {[%emt 0:0:38]} 24. Nb1 {[%emt 0:1:13]} a5 {[%emt 0:0:17]
} 25. a3 {[%emt 0:0:30]} Be7 {[%emt 0:0:2]} 26. a4 {[%emt 0:0:0]} c5 {[%emt 0:0:36]} 27. c4 {[%emt 0:0:4]} Rb8 {[%emt 0:0:33]} 28. Na3 {[%emt 0:0:17]} c6 {[%emt 0:0:9]} 29. Bd2 {[%emt 0:0:2]} Ra8 {[%emt 0:0:0]} 30. Bc3 {[%emt 0:0:17]} Nd7 {[%emt 0:0:11]} 31. Nb1 {[%emt 0:0:2]} Bd8 {[%emt 0:0:22]} 32. Nd2 {[%emt 0:0:7]} Bc7 {[%emt 0:0:7]} 33. Ne1 {[%emt 0:1:20]
} Ke7 {[%emt 0:0:17]} 34. Re3 {[%emt 0:0:3]} f4 {[%emt 0:0:0]} 35. Re2 {[%emt 0:0:6]} g5 {[%emt 0:0:7]} 36. g4 {[%emt 0:0:12]} Rh8 {[%emt 0:0:12]
} 37. Kg2 {[%emt 0:0:8]} h5 {[%emt 0:0:2]} 38. h3 {[%emt 0:0:0]} h4 {[%emt 0:0:8]} 39. Nd3 {[%emt 0:0:6]} Rb8 {[%emt 0:0:11]} 40. Kf2 {[%emt 0:0:5]} Ra8 {[%emt 0:0:3]} 41. Ke1 {[%emt 0:0:1]} Rb8 {[%emt 0:0:1]
} 42. Kd1 {[%emt 0:0:1]} Ra8 {[%emt 0:0:4]} 43. Kc2 {[%emt 0:0:0]} Rb8 {[%emt 0:0:1]} 44. Nb1 {[%emt 0:0:11]} Ra8 {[%emt 0:0:5]} 45. Bb2 {[%emt 0:0:4]} Rb8 {[%emt 0:0:9]} 46. Nc3 {[%emt 0:0:4]} Bd6 {[%emt 0:0:9]
} 47. Rd2 {[%emt 0:0:23]} Rb7 {[%emt 0:0:5]} 48. Ba3 {[%emt 0:0:0]} Rb8 {[%emt 0:0:4]} 49. Nd1 {[%emt 0:0:13]} Rb7 {[%emt 0:0:4]} 50. N1f2 {[%emt 0:0:4]} Rb8 {[%emt 0:0:15]} 51. Nxc5 {[%emt 0:0:9]} Bxc5 {[%emt 0:1:33]
} 52. Rxd7+ {[%emt 0:0:2]} Bxd7 {[%emt 0:0:27]} 53. Bxc5+ {[%emt 0:0:1]
} Ke6 {[%emt 0:0:0]} 54. Nd3 {[%emt 0:0:6]} Bc8 {[%emt 0:0:0]} 55. Ba3 {[%emt 0:0:5]} Ra8 {[%emt 0:0:9]} 56. Bb2 {[%emt 0:0:2]} Ke7 {[%emt 0:1:21]} 57. Bxe5 {[%emt 0:0:12]} Be6 {[%emt 0:0:1]} 58. Bc3 {[%emt 0:0:41]
} Kd6 {[%emt 0:0:9]} 59. Bf6 {[%emt 0:0:26]} Rg8 {[%emt 0:0:0]} 60. Be5+ {[%emt 0:0:14]} Ke7 {[%emt 0:0:8]} 61. Bc7 {[%emt 0:0:2]} Ra8 {[%emt 0:0:6]} 62. Nc5 {[%emt 0:0:8]} Ra7 {[%emt 0:0:28]} 63. Bb6 {[%emt 0:0:23]
} Ra8 {[%emt 0:0:3]} 64. Kc3 {[%emt 0:0:18]} Bc8 {[%emt 0:0:0]} 65. Kd4 {[%emt 0:0:10]} Kd6 {[%emt 0:0:10]} 66. Bd8 {[%emt 0:0:12]} Bxg4 {[%emt 0:0:14]} 67. e5# {[%emt 0:0:2]} 1-0

[Event "FIDE World Rapid-ch Open 2018"]
[White "Hirneise, Tobias"]
[Black "Vlassov, Nikolai"]
[Site "St. Petersburg"]
[Round "11.91"]
[Annotator "ChessBase"]
[Result "0-1"]
[Date "2018.12.28"]
[WhiteElo "2464"]
[BlackElo "2401"]
[PlyCount "72"]
[TimeControl "900+10"]

1. e4 {[%emt 0:0:0]} c5 {[%emt 0:0:0]} 2. Nf3 {[%emt 0:0:0]} d6 {[%emt 0:0:0]} 3. d4 {[%emt 0:0:0]} cxd4 {[%emt 0:0:0]} 4. Nxd4 {[%emt 0:0:0]} Nf6 {[%emt 0:0:0]} 5. Nc3 {[%emt 0:0:0]} g6 {[%emt 0:0:0]} 6. Be3 {[%emt 0:0:6]
} Bg7 {[%emt 0:0:0]} 7. f3 {[%emt 0:0:7]} a6 {[%emt 0:0:0]} 8. Qd2 {[%emt 0:0:2]} h5 {[%emt 0:0:0]} 9. Be2 {[%emt 0:0:3]} Nbd7 {[%emt 0:0:0]
} 10. 0-0 {[%emt 0:0:8]} b5 {[%emt 0:0:28]} 11. b4 {[%emt 0:0:0]} Bb7 {[%emt 0:0:15]} 12. a4 {[%emt 0:0:1]} bxa4 {[%emt 0:0:2]} 13. Rxa4 {[%emt 0:0:3]} 0-0 {[%emt 0:0:6]} 14. Rfa1 {[%emt 0:0:7]} Qc8 {[%emt 0:0:10]
} 15. Nb3 {[%emt 0:1:43]} Ne8 {[%emt 0:2:24]} 16. Bd4 {[%emt 0:0:0]} Ne5 {[%emt 0:0:33]} 17. Na5 {[%emt 0:0:25]} Nc7 {[%emt 0:0:7]} 18. f4 {[%emt 0:1:39]} Ne6 {[%emt 0:0:40]} 19. Bxe5 {[%emt 0:2:10]} dxe5 {[%emt 0:0:4]
} 20. f5 {[%emt 0:0:0]} Rd8 {[%emt 0:0:38]} 21. Bd3 {[%emt 0:0:0]} gxf5 {[%emt 0:0:56]} 22. Nxb7 {[%emt 0:0:27]} Qxb7 {[%emt 0:0:13]} 23. Qf2 {[%emt 0:1:27]} Nf4 {[%emt 0:1:4]} 24. Bxa6 {[%emt 0:1:1]} Qc6 {[%emt 0:1:24]
} 25. Nd5 {[%emt 0:0:33]} Nxd5 {[%emt 0:2:54]} 26. b5 {[%emt 0:0:0]} Qg6 {[%emt 0:0:34]} 27. exd5 {[%emt 0:0:8]} e4 {[%emt 0:0:17]} 28. Rd1 {[%emt 0:0:20]} Be5 {[%emt 0:1:10]} 29. Qe2 {[%emt 0:1:9]} Kh7 {[%emt 0:0:30]
} 30. Rc4 {[%emt 0:0:39]} Rg8 {[%emt 0:0:19]} 31. Re1 {[%emt 0:0:0]} Qg5 {[%emt 0:0:21]} 32. Qf2 {[%emt 0:0:15]} Rg6 {[%emt 0:0:14]} 33. Kh1 {[%emt 0:0:55]} Rag8 {[%emt 0:0:11]} 34. Bc8 {[%emt 0:0:16]} Qxg2+ {[%emt 0:0:42]
} 35. Qxg2 {[%emt 0:0:5]} Rxg2 {[%emt 0:0:2]} 36. Bxf5+ {[%emt 0:0:22]
} Kh8 {[%emt 0:0:43]} 0-1

[Event "FIDE World Rapid-ch Open 2018"]
[White "Dzhumagaliev, Yan"]
[Black "Yeritsyan, Aram"]
[Site "St. Petersburg"]
[Round "11.92"]
[Annotator "ChessBase"]
[Result "1-0"]
[Date "2018.12.28"]
[WhiteElo "2410"]
[BlackElo "2372"]
[PlyCount "79"]
[TimeControl "900+10"]

1. d4 {[%emt 0:0:0]} Nf6 {[%emt 0:0:0]} 2. c4 {[%emt 0:0:0]} e6 {[%emt 0:0:0]} 3. g3 {[%emt 0:0:0]} Bb4+ {[%emt 0:0:4]} 4. Bd2 {[%emt 0:0:2]} a5 {[%emt 0:0:1]} 5. Bg2 {[%emt 0:0:31]} 0-0 {[%emt 0:0:3]} 6. Nf3 {[%emt 0:0:0]} b6 {[%emt 0:0:1]} 7. 0-0 {[%emt 0:0:51]} Bb7 {[%emt 0:0:1]} 8. Bf4 {[%emt 0:0:28]} Be7 {[%emt 0:1:37]} 9. Nc3 {[%emt 0:0:15]} d6 {[%emt 0:0:0]} 10. Qc2 {[%emt 0:0:15]} Nbd7 {[%emt 0:0:12]} 11. e4 {[%emt 0:0:13]} Nh5 {[%emt 0:0:23]} 12. Be3 {[%emt 0:0:48]} e5 {[%emt 0:0:42]} 13. Rad1 {[%emt 0:0:10]
} exd4 {[%emt 0:0:37]} 14. Nxd4 {[%emt 0:0:6]} Re8 {[%emt 0:0:0]} 15. Rfe1 {[%emt 0:3:32]} Bf8 {[%emt 0:0:11]} 16. Ndb5 {[%emt 0:0:28]
} Nhf6 {[%emt 0:1:29]} 17. Bf4 {[%emt 0:1:52]} Nh5 {[%emt 0:1:48]} 18. Bc1 {[%emt 0:0:14]
} Qb8 19. b3 {[%emt 0:1:39]} c6 {[%emt 0:2:57]} 20. Nd4 {[%emt 0:0:3]
} Qc7 {[%emt 0:0:2]} 21. a3 {[%emt 0:0:57]} Rad8 {[%emt 0:0:0]} 22. b4 {[%emt 0:1:12]} axb4 {[%emt 0:0:37]} 23. axb4 {[%emt 0:0:1]} Rc8 {[%emt 0:1:59]} 24. Qb3 {[%emt 0:0:25]} Nhf6 {[%emt 0:0:15]} 25. Bb2 {[%emt 0:0:34]
} g6 {[%emt 0:0:16]} 26. h3 {[%emt 0:2:28]} Bg7 {[%emt 0:0:3]
} 27. Kh2 {[%emt 0:0:2]} h5 {[%emt 0:0:6]} 28. f4 {[%emt 0:0:1]} h4 {[%emt 0:1:16]
} 29. g4 {[%emt 0:0:4]} d5 {[%emt 0:0:32]} 30. e5 {[%emt 0:0:0]} Nxg4+ {[%emt 0:1:51]} 31. hxg4 {[%emt 0:0:8]} dxc4 {[%emt 0:0:21]} 32. Qxc4 {[%emt 0:0:58]} Bxe5 {[%emt 0:0:1]} 33. Nde2 {[%emt 0:1:10]} b5 {[%emt 0:0:37]
} 34. Nxb5 {[%emt 0:0:18]} Qd8 {[%emt 0:0:13]} 35. fxe5 {[%emt 0:0:16]
} cxb5 {[%emt 0:0:5]} 36. Qd4 {[%emt 0:0:12]} Bxg2 {[%emt 0:0:0]} 37. e6 {[%emt 0:0:3]} Qc7+ {[%emt 0:0:30]} 38. Kxg2 {[%emt 0:0:2]} f6 {[%emt 0:0:14]} 39. Qxd7 {[%emt 0:0:14]} h3+ {[%emt 0:0:12]} 40. Kxh3 {[%emt 0:0:5]
} 1-0

[Event "FIDE World Rapid-ch Open 2018"]
[White "Lintchevski, Daniil"]
[Black "Vorotnikov, Vladislav V"]
[Site "St. Petersburg"]
[Round "11.93"]
[Annotator "ChessBase"]
[Result "1-0"]
[Date "2018.12.28"]
[WhiteElo "2516"]
[BlackElo "2417"]
[PlyCount "101"]
[TimeControl "900+10"]

1. Nf3 {[%emt 0:0:0]} d6 {[%emt 0:2:19]} 2. d4 {[%emt 0:0:5]} Bg4 {[%emt 0:0:13]
} 3. g3 {[%emt 0:0:8]} Bxf3 {[%emt 0:0:10]} 4. exf3 {[%emt 0:0:0]} d5 {[%emt 0:0:7]} 5. Bd3 {[%emt 0:1:15]} e6 {[%emt 0:0:16]} 6. 0-0 {[%emt 0:0:17]} Nf6 {[%emt 0:0:56]} 7. Nd2 {[%emt 0:0:4]} Nbd7 {[%emt 0:0:0]} 8. f4 {[%emt 0:0:21]} g6 {[%emt 0:0:4]} 9. Nf3 {[%emt 0:0:4]} Bg7 {[%emt 0:0:26]
} 10. c3 {[%emt 0:0:15]} c5 {[%emt 0:0:29]} 11. Be3 {[%emt 0:0:0]} cxd4 {[%emt 0:0:41]} 12. Bxd4 {[%emt 0:0:4]} 0-0 {[%emt 0:0:12]} 13. Ne5 {[%emt 0:0:11]} Ne8 {[%emt 0:1:21]} 14. Qe2 {[%emt 0:0:47]} Nd6 {[%emt 0:0:18]
} 15. Rad1 {[%emt 0:0:38]} Qc7 {[%emt 0:1:50]} 16. h4 {[%emt 0:0:0]} Nxe5 {[%emt 0:1:19]} 17. fxe5 {[%emt 0:0:8]} Nf5 {[%emt 0:0:29]} 18. Bxf5 {[%emt 0:1:7]} gxf5 {[%emt 0:0:19]} 19. Kh1 {[%emt 0:0:32]} Kh8 {[%emt 0:1:7]
} 20. f3 {[%emt 0:0:34]} Rae8 {[%emt 0:1:42]} 21. g4 {[%emt 0:0:0]} f4 {[%emt 0:0:29]} 22. g5 {[%emt 0:0:15]} Qc4 {[%emt 0:1:17]} 23. Qxc4 {[%emt 0:0:5]} dxc4 {[%emt 0:0:1]} 24. Bc5 {[%emt 0:0:5]} Rg8 {[%emt 0:0:6]
} 25. Rd7 {[%emt 0:0:3]} Bxe5 {[%emt 0:0:24]} 26. Re1 {[%emt 0:1:13]
} f6 {[%emt 0:0:9]} 27. Rxe5 {[%emt 0:1:40]} fxe5 {[%emt 0:0:0]} 28. Bd6 {[%emt 0:0:2]} Rg6 {[%emt 0:0:1]} 29. Bxe5+ Kg8 30. Bf6 {[%emt 0:0:35]
} Rf8 {[%emt 0:1:16]} 31. Rxb7 {[%emt 0:1:56]} Rfxf6 {[%emt 0:0:0]} 32. gxf6 {[%emt 0:0:2]} Rxf6 {[%emt 0:0:0]} 33. Rxa7 {[%emt 0:0:0]} e5 {[%emt 0:0:1]} 34. Re7 {[%emt 0:0:49]} Rb6 {[%emt 0:0:25]} 35. Rxe5 {[%emt 0:0:3]} Rxb2 {[%emt 0:0:2]} 36. Re4 {[%emt 0:0:1]} Rxa2 {[%emt 0:0:0]} 37. Rxf4 {[%emt 0:0:1]} Kg7 {[%emt 0:0:45]} 38. Kg1 {[%emt 0:0:23]} Kg6 {[%emt 0:0:6]} 39. Kf1 {[%emt 0:0:3]} Rc2 {[%emt 0:0:22]} 40. Rxc4 {[%emt 0:0:2]
} Kf5 {[%emt 0:0:3]} 41. Ke1 {[%emt 0:0:17]} Rh2 {[%emt 0:0:0]} 42. Kd1 {[%emt 0:0:42]} Rf2 {[%emt 0:0:7]} 43. Rc7 {[%emt 0:0:4]} Kg6 {[%emt 0:0:10]} 44. Rc6+ {[%emt 0:0:19]} Kg7 {[%emt 0:0:15]} 45. Rd6 {[%emt 0:0:41]
} Rxf3 {[%emt 0:0:7]} 46. Kc2 {[%emt 0:0:1]} Rh3 {[%emt 0:0:0]} 47. Rd4 {[%emt 0:0:17]} Kf6 {[%emt 0:0:1]} 48. Kb3 {[%emt 0:0:17]} Ke5 {[%emt 0:0:1]} 49. Ra4 {[%emt 0:0:1]} Rf3 {[%emt 0:0:28]} 50. Ra7 {[%emt 0:0:37]
} h6 {[%emt 0:0:18]} 51. Ra6 {[%emt 0:0:2]} 1-0

[Event "FIDE World Rapid-ch Open 2018"]
[White "Danielyan, Vahe"]
[Black "Sokolov, Andrei"]
[Site "St. Petersburg"]
[Round "11.94"]
[Annotator "ChessBase"]
[Result "0-1"]
[Date "2018.12.28"]
[WhiteElo "2220"]
[BlackElo "2532"]
[PlyCount "102"]
[TimeControl "900+10"]

1. e4 {[%emt 0:0:0]} c5 {[%emt 0:0:0]} 2. Nf3 {[%emt 0:0:0]} g6 {[%emt 0:0:0]} 3. c3 {[%emt 0:0:29]} Bg7 {[%emt 0:0:9]} 4. d4 {[%emt 0:0:3]} cxd4 {[%emt 0:0:18]} 5. cxd4 {[%emt 0:0:4]} d5 {[%emt 0:0:5]} 6. e5 {[%emt 0:0:0]} Nc6 {[%emt 0:0:6]} 7. Nc3 {[%emt 0:0:2]} Nh6 {[%emt 0:0:17]} 8. h3 {[%emt 0:0:1]} 0-0 {[%emt 0:0:45]} 9. Be2 {[%emt 0:0:7]} f6 {[%emt 0:0:0]} 10. exf6 {[%emt 0:0:12]} exf6 {[%emt 0:0:36]} 11. 0-0 {[%emt 0:0:3]} Nf5 {[%emt 0:0:24]} 12. b3 {[%emt 0:0:6]} Be6 {[%emt 0:0:16]} 13. Re1 {[%emt 0:0:2]
} Re8 {[%emt 0:0:29]} 14. Bf4 {[%emt 0:0:8]} Nd6 {[%emt 0:0:0]} 15. Bd3 {[%emt 0:0:23]} Qd7 {[%emt 0:0:7]} 16. Na4 {[%emt 0:0:6]} b6 {[%emt 0:0:15]} 17. Rc1 {[%emt 0:0:2]} Nb4 {[%emt 0:0:39]} 18. Bb1 {[%emt 0:0:12]
} Bf7 {[%emt 0:0:6]} 19. Qd2 {[%emt 0:1:41]} Nc6 {[%emt 0:0:0]} 20. Rxe8+ {[%emt 0:3:15]} Rxe8 {[%emt 0:0:9]} 21. Qc3 {[%emt 0:0:4]} Rc8 {[%emt 0:0:46]} 22. Bxd6 {[%emt 0:0:4]} Qxd6 {[%emt 0:0:2]} 23. Bd3 {[%emt 0:0:8]
} Ne7 {[%emt 0:0:59]} 24. Qd2 {[%emt 0:0:4]} Be6 {[%emt 0:0:0]} 25. Ba6 {[%emt 0:1:54]} Rxc1+ {[%emt 0:0:22]} 26. Qxc1 {[%emt 0:0:0]} Qc6 {[%emt 0:2:28]} 27. Qxc6 {[%emt 0:0:49]} Nxc6 {[%emt 0:0:1]} 28. Bb7 {[%emt 0:0:4]
} Nb4 {[%emt 0:2:20]} 29. Nc3 {[%emt 0:0:3]} Kf7 {[%emt 0:0:0]} 30. Ne1 {[%emt 0:0:2]} Bh6 {[%emt 0:0:11]} 31. Nf3 {[%emt 0:2:27]} Bc1 {[%emt 0:0:34]} 32. a3 {[%emt 0:2:39]} Bxa3 {[%emt 0:0:25]} 33. Nb5 {[%emt 0:0:1]
} Bb2 {[%emt 0:0:1]} 34. Nxa7 {[%emt 0:0:0]} Ke7 {[%emt 0:0:0]} 35. Nc6+ {[%emt 0:0:24]} Nxc6 {[%emt 0:0:2]} 36. Bxc6 {[%emt 0:0:0]} Kd6 {[%emt 0:0:8]} 37. Bb5 {[%emt 0:0:1]} Bf5 {[%emt 0:0:6]} 38. Kf1 {[%emt 0:0:3]
} Bc2 {[%emt 0:0:7]} 39. Ba4 {[%emt 0:0:1]} Bd3+ {[%emt 0:0:0]} 40. Ke1 {[%emt 0:0:38]} Bc3+ {[%emt 0:0:5]} 41. Kd1 {[%emt 0:0:7]} b5 {[%emt 0:0:4]} 42. Bxb5 Bxb5 {[%emt 0:0:2]} 43. Kc2 {[%emt 0:0:2]} Bb4 {[%emt 0:0:5]
} 44. g3 {[%emt 0:0:9]} Bd7 {[%emt 0:0:24]} 45. h4 {[%emt 0:0:0]} Bf5+ {[%emt 0:0:12]} 46. Kc1 {[%emt 0:0:3]} Bg4 {[%emt 0:0:12]} 47. Nh2 {[%emt 0:0:1]} Be2 {[%emt 0:0:4]} 48. h5 {[%emt 0:0:19]} gxh5 {[%emt 0:0:7]
} 49. f3 {[%emt 0:0:9]} Be1 {[%emt 0:0:26]} 50. g4 {[%emt 0:0:0]} Bg3 {[%emt 0:0:14]} 51. Kd2 {[%emt 0:0:2]} Bb5 {[%emt 0:0:2]} 0-1

[Event "FIDE World Rapid-ch Open 2018"]
[White "Shubin, Kirill"]
[Black "Zakhartsov, Vladimir"]
[Site "St. Petersburg"]
[Round "11.95"]
[Annotator "ChessBase"]
[Result "1-0"]
[Date "2018.12.28"]
[WhiteElo "2334"]
[BlackElo "2486"]
[PlyCount "181"]
[TimeControl "900+10"]

1. e4 {[%emt 0:0:0]} c5 {[%emt 0:5:55]} 2. Nf3 {[%emt 0:0:0]} d6 {[%emt 0:0:0]} 3. d4 {[%emt 0:0:0]} Nf6 {[%emt 0:0:1]} 4. Nc3 {[%emt 0:0:0]} cxd4 {[%emt 0:0:1]} 5. Nxd4 {[%emt 0:0:0]} a6 {[%emt 0:0:2]} 6. Be3 {[%emt 0:0:2]
} e6 {[%emt 0:0:19]} 7. g4 {[%emt 0:0:6]} b5 {[%emt 0:0:7]} 8. Bg2 {[%emt 0:3:48]} Bb7 {[%emt 0:0:5]} 9. a3 {[%emt 0:0:13]} Nfd7 {[%emt 0:0:24]
} 10. g5 {[%emt 0:1:18]} Nb6 {[%emt 0:0:7]} 11. h4 {[%emt 0:0:0]} Be7 {[%emt 0:0:21]} 12. Qg4 {[%emt 0:1:57]} Nc4 {[%emt 0:0:17]} 13. Bc1 {[%emt 0:0:25]} Qb6 {[%emt 0:0:25]} 14. Nde2 {[%emt 0:0:12]} Nd7 {[%emt 0:0:9]
} 15. h5 {[%emt 0:0:23]} Rf8 {[%emt 0:2:20]} 16. b3 {[%emt 0:0:0]} Nce5 {[%emt 0:0:6]} 17. Qg3 {[%emt 0:0:23]} Rc8 {[%emt 0:0:1]} 18. f4 {[%emt 0:0:44]} Nc6 {[%emt 0:0:1]} 19. Be3 {[%emt 0:0:2]} Qa5 {[%emt 0:0:0]} 20. 0-0 {[%emt 0:0:12]} g6 {[%emt 0:0:17]} 21. f5 {[%emt 0:0:40]} Nce5 {[%emt 0:0:7]} 22. b4 {[%emt 0:0:54]} Qc7 {[%emt 0:0:4]} 23. fxe6 {[%emt 0:0:35]
} fxe6 {[%emt 0:0:1]} 24. Bh3 {[%emt 0:0:6]} Qc4 {[%emt 0:0:0]} 25. Bd4 {[%emt 0:0:42]} Rg8 {[%emt 0:0:46]} 26. h6 {[%emt 0:0:15]} Nf7 {[%emt 0:1:0]} 27. Be3 {[%emt 0:0:53]} Nfe5 {[%emt 0:1:30]} 28. Rf2 {[%emt 0:0:36]
} Rf8 {[%emt 0:0:26]} 29. Raf1 {[%emt 0:0:13]} Rxf2 {[%emt 0:0:0]} 30. Rxf2 {[%emt 0:0:16]} Bxe4 {[%emt 0:1:19]} 31. Rf4 {[%emt 0:0:35]
} Nf3+ {[%emt 0:0:6]} 32. Rxf3 {[%emt 0:0:8]} Bxf3 {[%emt 0:0:1]} 33. Qxf3 {[%emt 0:0:1]} Ne5 {[%emt 0:0:9]} 34. Qg2 {[%emt 0:0:52]} Nf7 {[%emt 0:1:19]
} 35. Ne4 {[%emt 0:0:37]} Qxc2 {[%emt 0:0:52]} 36. Bxe6 {[%emt 0:0:20]
} Qd1+ {[%emt 0:0:14]} 37. Qf1 {[%emt 0:0:48]} Qxf1+ {[%emt 0:0:0]} 38. Kxf1 {[%emt 0:0:2]} Rc2 {[%emt 0:0:2]} 39. Bxf7+ {[%emt 0:0:0]} Kxf7 {[%emt 0:0:4]} 40. N4c3 {[%emt 0:0:9]} d5 {[%emt 0:1:6]} 41. Nxd5 {[%emt 0:0:37]} Bd6 {[%emt 0:0:13]} 42. Nf6 {[%emt 0:0:22]} Ra2 {[%emt 0:0:9]
} 43. Nxh7 {[%emt 0:0:35]} Rxa3 {[%emt 0:0:3]} 44. Kf2 {[%emt 0:0:4]
} Bxb4 {[%emt 0:0:24]} 45. Bd4 {[%emt 0:0:16]} Rh3 {[%emt 0:0:0]} 46. Nf6 {[%emt 0:0:3]} Bf8 {[%emt 0:0:13]} 47. Ng4 {[%emt 0:0:15]} Rh5 {[%emt 0:0:16]} 48. Bf6 {[%emt 0:0:18]} Kg8 {[%emt 0:0:15]} 49. Nf4 {[%emt 0:0:6]
} Rh1 {[%emt 0:0:11]} 50. Nxg6 {[%emt 0:0:6]} Bc5+ {[%emt 0:0:0]} 51. Ke2 {[%emt 0:0:8]} Rg1 {[%emt 0:0:16]} 52. N6e5 {[%emt 0:0:2]} Rh1 {[%emt 0:0:14]} 53. g6 {[%emt 0:0:19]} Bf8 {[%emt 0:0:1]} 54. h7+ {[%emt 0:0:18]
} Rxh7 {[%emt 0:0:2]} 55. gxh7+ {[%emt 0:0:1]} Kxh7 {[%emt 0:0:0]} 56. Bd8 {[%emt 0:0:11]} Bb4 {[%emt 0:0:20]} 57. Kd3 {[%emt 0:0:13]} Kg8 {[%emt 0:0:21]} 58. Kd4 {[%emt 0:0:14]} Kf8 {[%emt 0:0:7]} 59. Kd5 {[%emt 0:0:8]
} Ke8 {[%emt 0:0:1]} 60. Bb6 {[%emt 0:0:4]} a5 {[%emt 0:0:0]} 61. Nc6 {[%emt 0:0:6]} Be1 {[%emt 0:0:5]} 62. Nxa5 {[%emt 0:0:3]} Kf7 {[%emt 0:0:5]} 63. Nb3 {[%emt 0:0:9]} b4 {[%emt 0:0:6]} 64. Ne5+ {[%emt 0:0:4]
} Kg7 {[%emt 0:0:3]} 65. Nd3 {[%emt 0:0:10]} Bc3 {[%emt 0:0:0]} 66. Bc5 {[%emt 0:0:5]} Kf6 {[%emt 0:0:21]} 67. Nxb4 {[%emt 0:0:2]} Bxb4 {[%emt 0:0:29]} 68. Bxb4 {[%emt 0:0:1]} Kf5 {[%emt 0:0:2]} 69. Bd2 {[%emt 0:0:7]
} Kg4 {[%emt 0:0:10]} 70. Nd4 {[%emt 0:0:3]} Kg3 {[%emt 0:0:0]} 71. Ke4 {[%emt 0:0:4]} Kf2 {[%emt 0:0:6]} 72. Kf4 {[%emt 0:0:31]} Kg2 {[%emt 0:0:5]} 73. Nf5 {[%emt 0:0:2]} Kf2 {[%emt 0:0:6]} 74. Ng3 {[%emt 0:0:8]
} Kg2 {[%emt 0:0:2]} 75. Ne4 {[%emt 0:0:12]} Kf1 {[%emt 0:0:0]} 76. Kf3 {[%emt 0:0:2]} Kg1 {[%emt 0:0:2]} 77. Nf2 {[%emt 0:0:18]} Kh2 {[%emt 0:0:3]} 78. Bf4+ {[%emt 0:0:1]} Kg1 {[%emt 0:0:2]} 79. Be5 {[%emt 0:0:9]
} Kf1 {[%emt 0:0:3]} 80. Bh2 {[%emt 0:0:2]} Ke1 {[%emt 0:0:0]} 81. Ne4 {[%emt 0:0:2]} Kd1 {[%emt 0:0:3]} 82. Ke3 {[%emt 0:0:2]} Kc2 {[%emt 0:0:2]} 83. Nd2 {[%emt 0:0:1]} Kc3 {[%emt 0:0:3]} 84. Bd6 {[%emt 0:0:2]
} Kc2 {[%emt 0:0:4]} 85. Be5 {[%emt 0:0:2]} Kd1 {[%emt 0:0:0]} 86. Kd3 {[%emt 0:0:9]} Ke1 {[%emt 0:0:4]} 87. Bg3+ {[%emt 0:0:2]} Kd1 {[%emt 0:0:1]} 88. Bf2 {[%emt 0:0:9]} Kc1 {[%emt 0:0:1]} 89. Nc4 {[%emt 0:0:2]
} Kd1 {[%emt 0:0:5]} 90. Nb2+ {[%emt 0:0:10]} Kc1 {[%emt 0:0:0]} 91. Kc3 {[%emt 0:0:1]} 1-0

[Event "FIDE World Rapid-ch Open 2018"]
[White "Pogosyan, Stefan"]
[Black "Masrahi, Abdulrahman A"]
[Site "St. Petersburg"]
[Round "11.96"]
[Annotator "NA"]
[Result "1-0"]
[Date "2018.12.28"]
[WhiteElo "2365"]
[BlackElo "1903"]
[PlyCount "51"]
[TimeControl "900+10"]

1. d4 {[%emt 0:0:0]} d5 {[%emt 0:0:0]} 2. c4 {[%emt 0:0:0]} c6 {[%emt 0:0:0]} 3. Nf3 {[%emt 0:0:0]} Nf6 {[%emt 0:0:0]} 4. Nbd2 {[%emt 0:0:0]} Bf5 {[%emt 0:0:7]} 5. Nh4 {[%emt 0:0:2]} Bg4 {[%emt 0:0:35]} 6. h3 {[%emt 0:0:14]
} Bh5 {[%emt 0:0:10]} 7. g4 {[%emt 0:0:15]} Bg6 {[%emt 0:0:2]
} 8. Nxg6 {[%emt 0:0:34]} hxg6 {[%emt 0:0:3]} 9. Bg2 {[%emt 0:0:2]} e6 {[%emt 0:0:8]
} 10. Qb3 {[%emt 0:1:20]} Qb6 {[%emt 0:0:13]} 11. Qxb6 {[%emt 0:1:27]
} axb6 {[%emt 0:0:3]} 12. e4 {[%emt 0:0:12]} dxe4 {[%emt 0:0:0]} 13. Nxe4 {[%emt 0:0:3]} Nbd7 {[%emt 0:0:26]} 14. Nc3 {[%emt 0:2:14]} Bb4 {[%emt 0:1:29]} 15. Bd2 {[%emt 0:0:50]} e5 {[%emt 0:3:27]} 16. d5 {[%emt 0:0:51]
} Bxc3 {[%emt 0:0:35]} 17. Bxc3 {[%emt 0:0:2]} c5 {[%emt 0:0:0]} 18. a4 {[%emt 0:1:27]} Ke7 {[%emt 0:1:2]} 19. d6+ {[%emt 0:0:43]} Kxd6 {[%emt 0:0:16]} 20. Bxb7 {[%emt 0:0:2]} Ra7 {[%emt 0:1:4]} 21. Bg2 {[%emt 0:0:6]
} Rd8 {[%emt 0:2:13]} 22. b3 {[%emt 0:0:11]} Ke6 {[%emt 0:0:0]} 23. 0-0-0 {[%emt 0:0:45]} Rc7 {[%emt 0:0:19]} 24. f4 {[%emt 0:0:38]} Rcc8 {[%emt 0:0:33]} 25. Rhe1 {[%emt 0:0:8]} Rb8 {[%emt 0:1:7]} 26. Bxe5 {[%emt 0:0:17]
 Kd5} 1-0

[Event "FIDE World Rapid-ch Open 2018"]
[White "Gurvich, Vitaly"]
[Black "Dubrovin, Robert"]
[Site "St. Petersburg"]
[Round "11.97"]
[Annotator "NA"]
[Result "1-0"]
[Date "2018.12.28"]
[WhiteElo "2270"]
[BlackElo "2220"]
[PlyCount "77"]
[TimeControl "900+10"]

1. d4 {[%emt 0:0:0]} Nf6 {[%emt 0:1:5]} 2. c4 {[%emt 0:0:0]} g6 {[%emt 0:0:0]} 3. Nc3 {[%emt 0:0:1]} Bg7 {[%emt 0:0:1]} 4. e4 {[%emt 0:0:7]} d6 {[%emt 0:0:0]} 5. Nf3 {[%emt 0:0:5]} 0-0 {[%emt 0:0:2]} 6. Be2 {[%emt 0:0:0]} e5 {[%emt 0:0:0]} 7. d5 {[%emt 0:0:3]} Nbd7 {[%emt 0:0:2]} 8. Bg5 {[%emt 0:0:2]} h6 {[%emt 0:0:1]} 9. Bh4 {[%emt 0:0:2]} g5 {[%emt 0:0:0]
} 10. Bg3 {[%emt 0:0:1]} Nh5 {[%emt 0:0:1]} 11. 0-0 {[%emt 0:0:6]} a5 {[%emt 0:0:35]
} 12. Nd2 {[%emt 0:0:3]} Nf4 {[%emt 0:0:9]} 13. Bg4 {[%emt 0:0:0]} Nc5 {[%emt 0:0:4]} 14. f3 {[%emt 0:0:29]} c6 {[%emt 0:0:9]} 15. Kh1 {[%emt 0:0:10]} Qb6 {[%emt 0:0:27]} 16. Qc2 {[%emt 0:0:56]} h5 {[%emt 0:0:0]} 17. Bf5 {[%emt 0:0:13]} Ncd3 {[%emt 0:1:20]} 18. Bxf4 {[%emt 0:6:43]
} Nxf4 {[%emt 0:0:11]} 19. g3 {[%emt 0:0:13]} Ng6 {[%emt 0:0:24]} 20. Na4 {[%emt 0:0:55]
} Qc7 {[%emt 0:0:39]} 21. Rac1 {[%emt 0:1:17]} Ne7 {[%emt 0:0:0]} 22. Qd3 {[%emt 0:0:10]} Bh6 {[%emt 0:1:34]} 23. g4 {[%emt 0:0:28]} f6 {[%emt 0:1:32]
} 24. Qe3 {[%emt 0:0:30]} c5 {[%emt 0:0:13]} 25. Nc3 {[%emt 0:0:0]} Kg7 {[%emt 0:0:31]} 26. a3 {[%emt 0:0:57]} Ng6 {[%emt 0:0:8]} 27. b4 {[%emt 0:0:13]} axb4 {[%emt 0:0:9]} 28. axb4 {[%emt 0:0:12]} b6 {[%emt 0:0:16]
} 29. Nb5 {[%emt 0:0:14]} Qe7 {[%emt 0:0:3]} 30. bxc5 {[%emt 0:0:6]
} bxc5 {[%emt 0:0:2]} 31. Ra1 {[%emt 0:0:9]} Bd7 {[%emt 0:0:0]} 32. Ra3 {[%emt 0:1:55]} Rxa3 {[%emt 0:0:31]} 33. Qxa3 {[%emt 0:0:8]} Bxb5 {[%emt 0:0:16]} 34. cxb5 {[%emt 0:0:8]} Qb7 {[%emt 0:0:3]} 35. Qa6 {[%emt 0:0:15]
} Qe7 {[%emt 0:1:47]} 36. Nc4 {[%emt 0:0:12]} Rd8 {[%emt 0:0:0]} 37. b6 {[%emt 0:0:4]} Nh4 {[%emt 0:0:8]} 38. Qa7 {[%emt 0:1:8]} Kf8 {[%emt 0:0:26]} 39. Be6 {[%emt 0:0:11]} 1-0